[Event "Titled Tuesday Blitz May 25 2021"]
[White "Vega Gutierrez, Sabrina"]
[Black "Bryakin, Mikhail"]
[WhiteFideId "2219026"]
[BlackFideId "4165314"]
[WhiteElo "2281"]
[BlackElo "2397"]
[Result "1-0"]
[Round "01"]
[TimeControl "180+1"]
[Date "2021.05.25"]
[WhiteClock "0:00:26"]
[BlackClock "0:00:06"]

1. e4 {[%clk 0:03:00]}  d6 {[%clk 0:02:44]} 2. d4 {[%clk 0:03:00]}  Nf6 {[%clk 0:02:42]} 3. Nc3 {[%clk 0:03:00]}  e5 {[%clk 0:02:41]} 4. Nf3 {[%clk 0:02:59]}  Nc6 {[%clk 0:02:36]} 5. Bb5 {[%clk 0:02:57]}  exd4 {[%clk 0:02:30]} 6. Nxd4 {[%clk 0:02:55]}  Bd7 {[%clk 0:02:31]} 7. Bxc6 {[%clk 0:02:56]}  Bxc6 {[%clk 0:02:31]} 8. Nxc6 {[%clk 0:02:55]}  bxc6 {[%clk 0:02:30]} 9. Bg5 {[%clk 0:02:49]}  Be7 {[%clk 0:02:29]} 10. Qd2 {[%clk 0:02:38]}  O-O {[%clk 0:02:27]} 11. O-O-O {[%clk 0:02:38]}  h6 {[%clk 0:02:24]} 12. Bf4 {[%clk 0:02:35]}  Nd7 {[%clk 0:02:23]} 13. f3 {[%clk 0:02:33]}  Rb8 {[%clk 0:02:23]} 14. h4 {[%clk 0:02:32]}  Bf6 {[%clk 0:02:19]} 15. g4 {[%clk 0:02:31]}  Bxh4 {[%clk 0:02:17]} 16. Kb1 {[%clk 0:02:26]}  Bg5 {[%clk 0:02:17]} 17. Bxg5 {[%clk 0:02:23]}  Qxg5 {[%clk 0:02:18]} 18. f4 {[%clk 0:02:23]}  Qa5 {[%clk 0:02:13]} 19. g5 {[%clk 0:02:20]}  Rfe8 {[%clk 0:01:42]} 20. gxh6 {[%clk 0:02:14]}  g6 {[%clk 0:01:41]} 21. h7+ {[%clk 0:02:13]}  Kg7 {[%clk 0:01:42]} 22. f5 {[%clk 0:02:12]}  Qe5 {[%clk 0:01:18]} 23. Rdg1 {[%clk 0:01:53]}  Kh8 {[%clk 0:00:30]} 24. fxg6 {[%clk 0:01:50]}  fxg6 {[%clk 0:00:30]} 25. Rxg6 {[%clk 0:01:50]}  Re6 {[%clk 0:00:31]} 26. Rg8+ {[%clk 0:01:33]}  Rxg8 {[%clk 0:00:30]} 27. hxg8=Q+ {[%clk 0:01:33]}  Kxg8 {[%clk 0:00:30]} 28. Qg2+ {[%clk 0:01:29]}  Qg7 {[%clk 0:00:23]} 29. Qh3 {[%clk 0:01:23]}  Rg6 {[%clk 0:00:23]} 30. a3 {[%clk 0:01:15]}  Rg1+ {[%clk 0:00:23]} 31. Rxg1 {[%clk 0:01:15]}  Qxg1+ {[%clk 0:00:22]} 32. Ka2 {[%clk 0:01:16]}  Qg7 {[%clk 0:00:22]} 33. Qe3 {[%clk 0:01:00]}  Nb6 {[%clk 0:00:19]} 34. a4 {[%clk 0:00:57]}  Qe5 {[%clk 0:00:20]} 35. Qd3 {[%clk 0:00:55]}  a5 {[%clk 0:00:18]} 36. Qa6 {[%clk 0:00:54]}  Kf7 {[%clk 0:00:18]} 37. Qb7 {[%clk 0:00:53]}  Qc5 {[%clk 0:00:12]} 38. Qxc7+ {[%clk 0:00:52]}  Ke6 {[%clk 0:00:12]} 39. Qg7 {[%clk 0:00:51]}  Qc4+ {[%clk 0:00:12]} 40. b3 {[%clk 0:00:47]}  Qc5 {[%clk 0:00:12]} 41. Kb2 {[%clk 0:00:42]}  Nd7 {[%clk 0:00:08]} 42. Ne2 {[%clk 0:00:28]}  Qe5+ {[%clk 0:00:06]} 43. Nd4+ {[%clk 0:00:26]} 1-0


[Site "https://www.chess.com"]

[Event "Titled Tuesday Blitz May 25 2021"]
[White "Vivas Zamora, Fabian Ernesto"]
[Black "Khanin, Semen"]
[WhiteFideId "3902480"]
[BlackFideId "4111990"]
[WhiteElo "1966"]
[BlackElo "2521"]
[Result "0-1"]
[Round "01"]
[TimeControl "180+1"]
[Date "2021.05.25"]
[WhiteClock "0:00:18"]
[BlackClock "0:02:00"]

1. c4 {[%clk 0:02:58]}  c5 {[%clk 0:02:59]} 2. Nf3 {[%clk 0:02:56]}  Nc6 {[%clk 0:02:59]} 3. d4 {[%clk 0:02:56]}  cxd4 {[%clk 0:02:59]} 4. Nxd4 {[%clk 0:02:56]}  g6 {[%clk 0:02:59]} 5. Nc2 {[%clk 0:02:50]}  Bg7 {[%clk 0:02:59]} 6. e4 {[%clk 0:02:50]}  d6 {[%clk 0:02:59]} 7. Be2 {[%clk 0:02:47]}  Nh6 {[%clk 0:02:57]} 8. O-O {[%clk 0:02:35]}  O-O {[%clk 0:02:57]} 9. Nc3 {[%clk 0:02:34]}  f5 {[%clk 0:02:57]} 10. exf5 {[%clk 0:01:51]}  Nxf5 {[%clk 0:02:56]} 11. Ne3 {[%clk 0:01:38]}  Nfd4 {[%clk 0:02:50]} 12. Bg4 {[%clk 0:01:37]}  Bxg4 {[%clk 0:02:47]} 13. Qxg4 {[%clk 0:01:38]}  Qc8 {[%clk 0:02:44]} 14. Qe4 {[%clk 0:01:22]}  Qe6 {[%clk 0:02:37]} 15. Qxe6+ {[%clk 0:01:18]}  Nxe6 {[%clk 0:02:37]} 16. Ned5 {[%clk 0:01:19]}  Nc5 {[%clk 0:02:27]} 17. Bg5 {[%clk 0:01:12]}  Rf7 {[%clk 0:02:10]} 18. Rae1 {[%clk 0:01:00]}  e6 {[%clk 0:02:10]} 19. b4 {[%clk 0:00:42]}  exd5 {[%clk 0:02:06]} 20. bxc5 {[%clk 0:00:42]}  Bxc3 {[%clk 0:02:05]} 21. cxd5 {[%clk 0:00:32]}  Bxe1 {[%clk 0:02:03]} 22. dxc6 {[%clk 0:00:32]}  Bb4 {[%clk 0:02:01]} 23. cxb7 {[%clk 0:00:18]}  Rxb7 {[%clk 0:02:00]} 24. c6 {[%clk 0:00:18]}  Rc7 {[%clk 0:02:00]} 0-1


[Site "https://www.chess.com"]

[Event "Titled Tuesday Blitz May 25 2021"]
[White "Wachinger, Guenther"]
[Black "Goltsev, Dmitry"]
[WhiteFideId "4604261"]
[BlackFideId "24176710"]
[WhiteElo "2212"]
[BlackElo "2366"]
[Result "0-1"]
[Round "01"]
[TimeControl "180+1"]
[Date "2021.05.25"]
[WhiteClock "0:00:04"]
[BlackClock "0:01:11"]

1. e4 {[%clk 0:02:58]}  c5 {[%clk 0:02:59]} 2. Nf3 {[%clk 0:02:58]}  e6 {[%clk 0:02:58]} 3. d4 {[%clk 0:02:58]}  cxd4 {[%clk 0:02:58]} 4. Nxd4 {[%clk 0:02:59]}  a6 {[%clk 0:02:58]} 5. c4 {[%clk 0:02:59]}  Qc7 {[%clk 0:02:58]} 6. a3 {[%clk 0:02:58]}  Nf6 {[%clk 0:02:58]} 7. Nc3 {[%clk 0:02:59]}  Nc6 {[%clk 0:02:57]} 8. Be3 {[%clk 0:02:58]}  Ne5 {[%clk 0:02:51]} 9. Be2 {[%clk 0:02:27]}  Be7 {[%clk 0:02:44]} 10. Rc1 {[%clk 0:02:25]}  d6 {[%clk 0:02:41]} 11. O-O {[%clk 0:02:24]}  O-O {[%clk 0:02:39]} 12. b4 {[%clk 0:02:21]}  Bd7 {[%clk 0:02:38]} 13. f4 {[%clk 0:02:17]}  Ng6 {[%clk 0:02:37]} 14. Qd2 {[%clk 0:02:14]}  Rfd8 {[%clk 0:02:34]} 15. f5 {[%clk 0:01:49]}  Ne5 {[%clk 0:02:32]} 16. Bf4 {[%clk 0:01:48]}  Rac8 {[%clk 0:02:27]} 17. Kh1 {[%clk 0:01:47]}  Qb6 {[%clk 0:02:16]} 18. fxe6 {[%clk 0:01:44]}  fxe6 {[%clk 0:02:15]} 19. Bxe5 {[%clk 0:01:06]}  dxe5 {[%clk 0:02:15]} 20. Nf3 {[%clk 0:01:02]}  Bc6 {[%clk 0:02:09]} 21. Qc2 {[%clk 0:00:56]}  Ng4 {[%clk 0:02:06]} 22. c5 {[%clk 0:00:53]}  Qc7 {[%clk 0:02:02]} 23. Nd1 {[%clk 0:00:49]}  Bf6 {[%clk 0:01:53]} 24. Bc4 {[%clk 0:00:47]}  Qe7 {[%clk 0:01:49]} 25. h3 {[%clk 0:00:47]}  Nh6 {[%clk 0:01:48]} 26. Nf2 {[%clk 0:00:46]}  Kh8 {[%clk 0:01:44]} 27. Qa2 {[%clk 0:00:45]}  Re8 {[%clk 0:01:37]} 28. Rcd1 {[%clk 0:00:45]}  Nf7 {[%clk 0:01:36]} 29. Rfe1 {[%clk 0:00:43]}  Ng5 {[%clk 0:01:34]} 30. Nxg5 {[%clk 0:00:41]}  Bxg5 {[%clk 0:01:35]} 31. Ng4 {[%clk 0:00:41]}  Bf4 {[%clk 0:01:31]} 32. Rd6 {[%clk 0:00:38]}  Qh4 {[%clk 0:01:26]} 33. Qf2 {[%clk 0:00:37]}  Bg3 {[%clk 0:01:25]} 34. Qf7 {[%clk 0:00:13]}  Re7 {[%clk 0:01:15]} 35. Rxc6 {[%clk 0:00:04]}  bxc6 {[%clk 0:01:11]} 0-1


[Site "https://www.chess.com"]

[Event "Titled Tuesday Blitz May 25 2021"]
[White "Weetik, Vjacheslav"]
[Black "Delgadillo, Adonay"]
[WhiteFideId "4153472"]
[BlackFideId "3301915"]
[WhiteElo "2469"]
[BlackElo "2103"]
[Result "1-0"]
[Round "01"]
[TimeControl "180+1"]
[Date "2021.05.25"]
[WhiteClock "0:01:34"]
[BlackClock "0:01:15"]

1. d4 {[%clk 0:02:50]}  Nf6 {[%clk 0:02:50]} 2. Bf4 {[%clk 0:02:49]}  c5 {[%clk 0:02:49]} 3. e3 {[%clk 0:02:49]}  g6 {[%clk 0:02:49]} 4. Nf3 {[%clk 0:02:46]}  Bg7 {[%clk 0:02:49]} 5. Nbd2 {[%clk 0:02:46]}  O-O {[%clk 0:02:49]} 6. Be2 {[%clk 0:02:45]}  b6 {[%clk 0:02:48]} 7. O-O {[%clk 0:02:44]}  Bb7 {[%clk 0:02:48]} 8. h3 {[%clk 0:02:45]}  d6 {[%clk 0:02:40]} 9. a4 {[%clk 0:02:40]}  Nbd7 {[%clk 0:02:39]} 10. a5 {[%clk 0:02:33]}  Re8 {[%clk 0:02:28]} 11. Bh2 {[%clk 0:02:30]}  Rc8 {[%clk 0:02:22]} 12. c3 {[%clk 0:02:27]}  Rb8 {[%clk 0:01:42]} 13. Re1 {[%clk 0:02:14]}  Bc6 {[%clk 0:01:38]} 14. axb6 {[%clk 0:02:11]}  axb6 {[%clk 0:01:39]} 15. Bf1 {[%clk 0:02:07]}  Ra8 {[%clk 0:01:37]} 16. e4 {[%clk 0:01:54]}  Rxa1 {[%clk 0:01:36]} 17. Qxa1 {[%clk 0:01:54]}  Qa8 {[%clk 0:01:30]} 18. d5 {[%clk 0:01:44]}  Bb7 {[%clk 0:01:27]} 19. Bb5 {[%clk 0:01:40]}  Qxa1 {[%clk 0:01:13]} 20. Rxa1 {[%clk 0:01:40]}  Ra8 {[%clk 0:01:14]} 21. Rxa8+ {[%clk 0:01:35]}  Bxa8 {[%clk 0:01:15]} 22. Bc6 {[%clk 0:01:34]} 1-0


[Site "https://www.chess.com"]

[Event "Titled Tuesday Blitz May 25 2021"]
[White "Yuan, Qingyu"]
[Black "Guimaraes, Diogo Duarte"]
[WhiteFideId "8609772"]
[BlackFideId "2112450"]
[WhiteElo "2359"]
[BlackElo "2263"]
[Result "1-0"]
[Round "01"]
[TimeControl "180+1"]
[Date "2021.05.25"]
[WhiteClock "0:00:40"]
[BlackClock "0:00:04"]

1. e4 {[%clk 0:03:00]}  e5 {[%clk 0:02:54]} 2. Nf3 {[%clk 0:02:58]}  Nc6 {[%clk 0:02:52]} 3. Bc4 {[%clk 0:02:59]}  Nf6 {[%clk 0:02:52]} 4. Ng5 {[%clk 0:02:58]}  d5 {[%clk 0:02:50]} 5. exd5 {[%clk 0:02:59]}  Na5 {[%clk 0:02:50]} 6. Bb5+ {[%clk 0:02:59]}  Bd7 {[%clk 0:02:50]} 7. Qe2 {[%clk 0:02:47]}  Be7 {[%clk 0:02:45]} 8. Bxd7+ {[%clk 0:02:43]}  Qxd7 {[%clk 0:02:39]} 9. Qxe5 {[%clk 0:02:42]}  O-O {[%clk 0:02:24]} 10. O-O {[%clk 0:02:20]}  Rfe8 {[%clk 0:01:57]} 11. Nf3 {[%clk 0:02:10]}  Nxd5 {[%clk 0:01:44]} 12. Nc3 {[%clk 0:02:00]}  Nxc3 {[%clk 0:01:38]} 13. Qxc3 {[%clk 0:01:50]}  Nc6 {[%clk 0:01:35]} 14. d4 {[%clk 0:01:45]}  Rad8 {[%clk 0:01:35]} 15. Be3 {[%clk 0:01:44]}  Bf6 {[%clk 0:01:30]} 16. Rad1 {[%clk 0:01:44]}  Qd5 {[%clk 0:01:31]} 17. Qb3 {[%clk 0:01:43]}  a5 {[%clk 0:01:25]} 18. h3 {[%clk 0:01:34]}  Nb4 {[%clk 0:01:21]} 19. c4 {[%clk 0:01:31]}  Qe4 {[%clk 0:01:18]} 20. Rd2 {[%clk 0:01:23]}  b6 {[%clk 0:01:08]} 21. Rfd1 {[%clk 0:01:13]}  h6 {[%clk 0:01:07]} 22. Qa4 {[%clk 0:01:10]}  Re7 {[%clk 0:01:03]} 23. d5 {[%clk 0:01:07]}  Na6 {[%clk 0:00:55]} 24. Qb5 {[%clk 0:01:03]}  Nb8 {[%clk 0:00:53]} 25. a3 {[%clk 0:01:03]}  Rde8 {[%clk 0:00:43]} 26. d6 {[%clk 0:00:58]}  cxd6 {[%clk 0:00:41]} 27. Rxd6 {[%clk 0:00:58]}  Qc2 {[%clk 0:00:24]} 28. R6d2 {[%clk 0:00:55]}  Qg6 {[%clk 0:00:23]} 29. Qxb6 {[%clk 0:00:49]}  a4 {[%clk 0:00:15]} 30. Qb5 {[%clk 0:00:45]}  Kh8 {[%clk 0:00:09]} 31. Qxa4 {[%clk 0:00:45]}  Kh7 {[%clk 0:00:07]} 32. Qc2 {[%clk 0:00:44]}  Qxc2 {[%clk 0:00:06]} 33. Rxc2 {[%clk 0:00:44]}  Nc6 {[%clk 0:00:07]} 34. b4 {[%clk 0:00:43]}  Ra8 {[%clk 0:00:06]} 35. b5 {[%clk 0:00:43]}  Na5 {[%clk 0:00:07]} 36. c5 {[%clk 0:00:43]}  Nb3 {[%clk 0:00:05]} 37. c6 {[%clk 0:00:43]}  Rxa3 {[%clk 0:00:05]} 38. c7 {[%clk 0:00:42]}  Rxc7 {[%clk 0:00:04]} 39. Rxc7 {[%clk 0:00:43]}  Na5 {[%clk 0:00:04]} 40. Ra7 {[%clk 0:00:40]}  Nc4 {[%clk 0:00:03]} 41. Rxa3 {[%clk 0:00:40]}  Nxa3 {[%clk 0:00:04]} 42. b6 {[%clk 0:00:40]} 1-0


[Site "https://www.chess.com"]

[Event "Titled Tuesday Blitz May 25 2021"]
[White "Zia, Tahsin Tajwar"]
[Black "Shahade, Gregory"]
[WhiteFideId "10211888"]
[BlackFideId "2009064"]
[WhiteElo "1800"]
[BlackElo "2685"]
[Result "1-0"]
[Round "01"]
[TimeControl "180+1"]
[Date "2021.05.25"]
[WhiteClock "0:00:05"]
[BlackClock "0:00:09"]

1. d4 {[%clk 0:03:00]}  Nf6 {[%clk 0:02:58]} 2. Bf4 {[%clk 0:02:59]}  g6 {[%clk 0:02:58]} 3. Nc3 {[%clk 0:02:57]}  d5 {[%clk 0:02:58]} 4. e3 {[%clk 0:02:57]}  Bg7 {[%clk 0:02:58]} 5. h4 {[%clk 0:02:51]}  c6 {[%clk 0:02:58]} 6. Be2 {[%clk 0:02:26]}  h5 {[%clk 0:02:57]} 7. Nf3 {[%clk 0:02:24]}  a5 {[%clk 0:02:56]} 8. Ne5 {[%clk 0:02:23]}  Nbd7 {[%clk 0:02:53]} 9. Qd2 {[%clk 0:02:14]}  Nxe5 {[%clk 0:02:53]} 10. Bxe5 {[%clk 0:02:09]}  Kf8 {[%clk 0:02:53]} 11. f3 {[%clk 0:02:05]}  b5 {[%clk 0:02:54]} 12. a3 {[%clk 0:02:05]}  Be6 {[%clk 0:02:43]} 13. Nd1 {[%clk 0:01:59]}  Nd7 {[%clk 0:02:42]} 14. Bxg7+ {[%clk 0:01:57]}  Kxg7 {[%clk 0:02:43]} 15. Nf2 {[%clk 0:01:57]}  Nf6 {[%clk 0:02:38]} 16. Nd3 {[%clk 0:01:56]}  Bf5 {[%clk 0:02:32]} 17. Ne5 {[%clk 0:01:49]}  Qc7 {[%clk 0:02:32]} 18. Bd3 {[%clk 0:01:45]}  Bxd3 {[%clk 0:02:28]} 19. cxd3 {[%clk 0:01:31]}  Nd7 {[%clk 0:02:12]} 20. f4 {[%clk 0:01:20]}  f6 {[%clk 0:01:59]} 21. Nxd7 {[%clk 0:01:17]}  Qxd7 {[%clk 0:02:00]} 22. Rc1 {[%clk 0:01:17]}  a4 {[%clk 0:01:39]} 23. Rc5 {[%clk 0:01:14]}  Qe6 {[%clk 0:01:27]} 24. Kf2 {[%clk 0:01:12]}  Rac8 {[%clk 0:01:18]} 25. Qe2 {[%clk 0:00:58]}  Rhd8 {[%clk 0:01:16]} 26. Rhc1 {[%clk 0:00:57]}  Qd6 {[%clk 0:01:06]} 27. g4 {[%clk 0:00:49]}  hxg4 {[%clk 0:01:06]} 28. Qxg4 {[%clk 0:00:50]}  f5 {[%clk 0:01:05]} 29. Qg3 {[%clk 0:00:46]}  Rh8 {[%clk 0:01:03]} 30. Ke2 {[%clk 0:00:28]}  Qf6 {[%clk 0:01:02]} 31. Kd2 {[%clk 0:00:17]}  Rh6 {[%clk 0:00:39]} 32. Kc2 {[%clk 0:00:09]}  Rxh4 {[%clk 0:00:34]} 33. Kb1 {[%clk 0:00:08]}  Rg4 {[%clk 0:00:35]} 34. Qh3 {[%clk 0:00:07]}  Rh4 {[%clk 0:00:17]} 35. Qf3 {[%clk 0:00:05]}  Rhh8 {[%clk 0:00:17]} 36. Qd1 {[%clk 0:00:03]}  Qe6 {[%clk 0:00:16]} 37. Qe1 {[%clk 0:00:04]}  Rh3 {[%clk 0:00:14]} 38. e4 {[%clk 0:00:03]}  Rxd3 {[%clk 0:00:14]} 39. e5 {[%clk 0:00:03]}  Rxd4 {[%clk 0:00:14]} 40. Qg3 {[%clk 0:00:03]}  Rd2 {[%clk 0:00:11]} 41. Rh1 {[%clk 0:00:03]}  Rh8 {[%clk 0:00:11]} 42. Rxh8 {[%clk 0:00:03]}  Kxh8 {[%clk 0:00:12]} 43. Qh4+ {[%clk 0:00:04]}  Kg7 {[%clk 0:00:13]} 44. Rc3 {[%clk 0:00:04]}  g5 {[%clk 0:00:06]} 45. fxg5 {[%clk 0:00:03]}  Qxe5 {[%clk 0:00:05]} 46. Qh6+ {[%clk 0:00:04]}  Kg8 {[%clk 0:00:06]} 47. Qg6+ {[%clk 0:00:04]}  Kf8 {[%clk 0:00:05]} 48. Qxc6 {[%clk 0:00:03]}  Rd1+ {[%clk 0:00:05]} 49. Ka2 {[%clk 0:00:03]}  d4 {[%clk 0:00:05]} 50. Qh6+ {[%clk 0:00:03]}  Ke8 {[%clk 0:00:03]} 51. Rc8+ {[%clk 0:00:03]}  Kf7 {[%clk 0:00:04]} 52. Qh7+ {[%clk 0:00:03]}  Ke6 {[%clk 0:00:05]} 53. Qg8+ {[%clk 0:00:04]}  Kd7 {[%clk 0:00:04]} 54. Qd8+ {[%clk 0:00:04]}  Ke6 {[%clk 0:00:05]} 55. Rc6+ {[%clk 0:00:04]}  Kf7 {[%clk 0:00:05]} 56. g6+ {[%clk 0:00:04]}  Kg7 {[%clk 0:00:05]} 57. Qe8 {[%clk 0:00:03]}  Qe6+ {[%clk 0:00:05]} 58. Rxe6 {[%clk 0:00:03]}  d3 {[%clk 0:00:05]} 59. Qf7+ {[%clk 0:00:03]}  Kh6 {[%clk 0:00:05]} 60. g7+ {[%clk 0:00:04]}  Kg5 {[%clk 0:00:06]} 61. g8=Q+ {[%clk 0:00:05]}  Kf4 {[%clk 0:00:07]} 62. Re4+ {[%clk 0:00:03]}  Kxe4 {[%clk 0:00:06]} 63. Qgg6 {[%clk 0:00:03]}  d2 {[%clk 0:00:06]} 64. Qgxf5+ {[%clk 0:00:03]}  Ke3 {[%clk 0:00:07]} 65. Qf2+ {[%clk 0:00:03]}  Ke4 {[%clk 0:00:07]} 66. Q7f4+ {[%clk 0:00:04]}  Kd3 {[%clk 0:00:08]} 67. Q2e3+ {[%clk 0:00:04]}  Kc2 {[%clk 0:00:08]} 68. Qfe4+ {[%clk 0:00:05]}  Kc1 {[%clk 0:00:09]} 69. Qc3# {[%clk 0:00:05]} 1-0


[Site "https://www.chess.com"]

[Event "Titled Tuesday Blitz May 25 2021"]
[White "Zubov, Alexander"]
[Black "Tsyhanchuk_Stanislav"]
[WhiteFideId "14109409"]
[WhiteElo "2740"]
[BlackElo "2460"]
[Result "1-0"]
[Round "01"]
[TimeControl "180+1"]
[Date "2021.05.25"]
[WhiteClock "0:00:21"]
[BlackClock "0:00:03"]

1. d4 {[%clk 0:02:58]}  Nf6 {[%clk 0:02:58]} 2. c4 {[%clk 0:02:57]}  g6 {[%clk 0:02:57]} 3. Nf3 {[%clk 0:02:57]}  Bg7 {[%clk 0:02:55]} 4. g3 {[%clk 0:02:57]}  O-O {[%clk 0:02:56]} 5. Bg2 {[%clk 0:02:58]}  d6 {[%clk 0:02:56]} 6. O-O {[%clk 0:02:58]}  Nc6 {[%clk 0:02:57]} 7. Nc3 {[%clk 0:02:57]}  a6 {[%clk 0:02:58]} 8. Bf4 {[%clk 0:02:47]}  Rb8 {[%clk 0:02:57]} 9. Rc1 {[%clk 0:02:45]}  Bd7 {[%clk 0:02:55]} 10. d5 {[%clk 0:02:22]}  Na5 {[%clk 0:02:53]} 11. b3 {[%clk 0:02:19]}  b5 {[%clk 0:02:53]} 12. cxb5 {[%clk 0:02:14]}  axb5 {[%clk 0:02:54]} 13. Nd4 {[%clk 0:02:05]}  Qe8 {[%clk 0:02:51]} 14. Qd2 {[%clk 0:01:56]}  b4 {[%clk 0:02:34]} 15. Nb1 {[%clk 0:01:56]}  e5 {[%clk 0:02:27]} 16. dxe6 {[%clk 0:01:54]}  fxe6 {[%clk 0:02:28]} 17. Bh6 {[%clk 0:01:50]}  Bxh6 {[%clk 0:02:11]} 18. Qxh6 {[%clk 0:01:49]}  c5 {[%clk 0:02:11]} 19. Nf3 {[%clk 0:01:41]}  Bb5 {[%clk 0:02:02]} 20. Rfe1 {[%clk 0:01:36]}  Qe7 {[%clk 0:01:54]} 21. Bh3 {[%clk 0:01:32]}  Ne4 {[%clk 0:01:26]} 22. Qe3 {[%clk 0:01:26]}  d5 {[%clk 0:00:31]} 23. Nbd2 {[%clk 0:01:25]}  Nxd2 {[%clk 0:00:17]} 24. Qxe6+ {[%clk 0:01:16]}  Qxe6 {[%clk 0:00:16]} 25. Bxe6+ {[%clk 0:01:17]}  Kg7 {[%clk 0:00:17]} 26. Nxd2 {[%clk 0:01:17]}  c4 {[%clk 0:00:14]} 27. bxc4 {[%clk 0:01:13]}  dxc4 {[%clk 0:00:15]} 28. Nxc4 {[%clk 0:01:12]}  Rfe8 {[%clk 0:00:14]} 29. Nxa5 {[%clk 0:00:49]}  Rxe6 {[%clk 0:00:13]} 30. Rc2 {[%clk 0:00:50]}  Rbe8 {[%clk 0:00:10]} 31. Kf1 {[%clk 0:00:47]}  h5 {[%clk 0:00:09]} 32. h4 {[%clk 0:00:45]}  Ra6 {[%clk 0:00:08]} 33. Nb3 {[%clk 0:00:45]}  Rea8 {[%clk 0:00:08]} 34. Nd4 {[%clk 0:00:45]}  Be8 {[%clk 0:00:07]} 35. Rb1 {[%clk 0:00:44]}  Ra4 {[%clk 0:00:05]} 36. Rc4 {[%clk 0:00:37]}  Bf7 {[%clk 0:00:05]} 37. Rcxb4 {[%clk 0:00:37]}  Rxa2 {[%clk 0:00:05]} 38. Rb7 {[%clk 0:00:36]}  Kg8 {[%clk 0:00:05]} 39. Rd7 {[%clk 0:00:36]}  R8a7 {[%clk 0:00:04]} 40. Rxa7 {[%clk 0:00:35]}  Rxa7 {[%clk 0:00:05]} 41. Rb5 {[%clk 0:00:29]}  Kg7 {[%clk 0:00:05]} 42. Kg2 {[%clk 0:00:28]}  Rc7 {[%clk 0:00:04]} 43. e3 {[%clk 0:00:28]}  Bc4 {[%clk 0:00:04]} 44. Ra5 {[%clk 0:00:28]}  Bf7 {[%clk 0:00:04]} 45. Kf3 {[%clk 0:00:28]}  Re7 {[%clk 0:00:04]} 46. Kf4 {[%clk 0:00:28]}  Rc7 {[%clk 0:00:04]} 47. e4 {[%clk 0:00:27]}  Rb7 {[%clk 0:00:04]} 48. f3 {[%clk 0:00:26]}  Rc7 {[%clk 0:00:03]} 49. Ra6 {[%clk 0:00:23]}  Re7 {[%clk 0:00:02]} 50. Rb6 {[%clk 0:00:22]}  Re8 {[%clk 0:00:02]} 51. Rb7 {[%clk 0:00:21]}  Kg8 {[%clk 0:00:01]} 52. Nc6 {[%clk 0:00:22]}  Rf8 {[%clk 0:00:01]} 53. Kg5 {[%clk 0:00:21]}  Be8 {[%clk 0:00:01]} 54. Ne7+ {[%clk 0:00:21]}  Kh8 {[%clk 0:00:02]} 55. Nxg6+ {[%clk 0:00:21]}  Bxg6 {[%clk 0:00:02]} 56. Kxg6 {[%clk 0:00:22]}  Rxf3 {[%clk 0:00:03]} 57. Rb8+ {[%clk 0:00:21]} 1-0


[Site "https://www.chess.com"]

[Event "Titled Tuesday Blitz May 25 2021"]
[White "freshfoodcompany"]
[Black "Barrientos, Sergio E"]
[BlackFideId "4401824"]
[WhiteElo "2413"]
[BlackElo "2536"]
[Result "1-0"]
[Round "01"]
[TimeControl "180+1"]
[Date "2021.05.25"]
[WhiteClock "0:00:30"]
[BlackClock "0:00:18"]

1. d4 {[%clk 0:03:00]}  Nf6 {[%clk 0:02:59]} 2. c4 {[%clk 0:03:00]}  g6 {[%clk 0:02:57]} 3. Nc3 {[%clk 0:02:59]}  d5 {[%clk 0:02:57]} 4. Nf3 {[%clk 0:02:59]}  Bg7 {[%clk 0:02:56]} 5. Qb3 {[%clk 0:02:59]}  dxc4 {[%clk 0:02:56]} 6. Qxc4 {[%clk 0:03:00]}  O-O {[%clk 0:02:55]} 7. e4 {[%clk 0:03:01]}  Nc6 {[%clk 0:02:55]} 8. Be2 {[%clk 0:03:01]}  Bg4 {[%clk 0:02:55]} 9. d5 {[%clk 0:02:59]}  Na5 {[%clk 0:02:49]} 10. Qa4 {[%clk 0:02:56]}  c6 {[%clk 0:02:38]} 11. e5 {[%clk 0:02:50]}  b5 {[%clk 0:01:52]} 12. Qf4 {[%clk 0:02:28]}  Bxf3 {[%clk 0:01:23]} 13. exf6 {[%clk 0:02:27]}  exf6 {[%clk 0:01:19]} 14. Qxf3 {[%clk 0:02:18]}  b4 {[%clk 0:01:18]} 15. Ne4 {[%clk 0:02:08]}  cxd5 {[%clk 0:01:15]} 16. Ng3 {[%clk 0:02:04]}  f5 {[%clk 0:01:13]} 17. O-O {[%clk 0:02:02]}  Rc8 {[%clk 0:01:06]} 18. Rd1 {[%clk 0:01:58]}  d4 {[%clk 0:01:06]} 19. Bd2 {[%clk 0:01:44]}  Qb6 {[%clk 0:01:01]} 20. Bd3 {[%clk 0:01:41]}  Nc4 {[%clk 0:00:56]} 21. Bxc4 {[%clk 0:01:40]}  Rxc4 {[%clk 0:00:57]} 22. Rac1 {[%clk 0:01:40]}  Rxc1 {[%clk 0:00:54]} 23. Rxc1 {[%clk 0:01:41]}  h5 {[%clk 0:00:51]} 24. b3 {[%clk 0:01:36]}  Re8 {[%clk 0:00:49]} 25. Nf1 {[%clk 0:01:31]}  a5 {[%clk 0:00:45]} 26. h3 {[%clk 0:01:27]}  Qb5 {[%clk 0:00:38]} 27. Rc4 {[%clk 0:01:12]}  Re4 {[%clk 0:00:36]} 28. Qd3 {[%clk 0:01:09]}  Qd5 {[%clk 0:00:29]} 29. f3 {[%clk 0:01:01]}  Re6 {[%clk 0:00:29]} 30. Be3 {[%clk 0:00:49]}  Rd6 {[%clk 0:00:18]} 31. Bf2 {[%clk 0:00:46]}  Rd8 {[%clk 0:00:17]} 32. Nd2 {[%clk 0:00:41]}  Kh7 {[%clk 0:00:18]} 33. f4 {[%clk 0:00:37]}  Rd7 {[%clk 0:00:18]} 34. Nf3 {[%clk 0:00:36]}  Qe4 {[%clk 0:00:18]} 35. Ng5+ {[%clk 0:00:30]} 1-0


[Site "https://www.chess.com"]